fUSD/lending_fUSD_20260514
["ID","MTS","AMOUNT","RATE_DAILY","PERIOD"]
[422253923,1778766652000,-500.0,0.0003497,120]
[422253925,1778766652000,-713.6903631,0.0003497,120]
[422253930,1778766652000,-500.0,0.00034976,3]
[422253937,1778766652000,-303.29746606,0.00034976,3]
[422253931,1778766652000,-300.0,0.00034976,3]
[422253929,1778766652000,-300.0,0.00034976,3]
[422253927,1778766652000,-400.0,0.00034976,3]
[422253932,1778766652000,-500.0,0.00034976,3]
[422253928,1778766652000,-500.0,0.00034976,3]
[422253926,1778766652000,-400.0,0.00034976,3]
[422253935,1778766652000,-329.15497333,0.00034976,3]
[422253933,1778766652000,-329.15497334,0.00034976,3]
[422253924,1778766652000,-786.2405537,0.0003497,120]
[422253934,1778766652000,-500.0,0.00034976,3]
[422253990,1778766653000,-237.0,0.00035593,30]
[422253991,1778766653000,-202.0,0.00035593,30]
[422253992,1778766653000,-170670.38298676,0.0003561,2]
[422253994,1778766653000,-1000.0,0.00035616,120]
[422253995,1778766653000,-1000.0,0.00035616,90]
[422253993,1778766653000,-4505.93146975,0.0003561,2]
[422253999,1778766653000,-1000.0,0.00035616,10]
[422254003,1778766653000,-1000.0,0.00035616,10]
[422254002,1778766653000,-1000.0,0.00035616,10]
[422254000,1778766653000,-1000.0,0.00035616,10]
[422254010,1778766653000,-1000.0,0.00035616,10]
[422254007,1778766653000,-1000.0,0.00035616,10]
[422254006,1778766653000,-1000.0,0.00035616,10]
[422254005,1778766653000,-1000.0,0.00035616,10]
[422254009,1778766653000,-1000.0,0.00035616,10]
[422254004,1778766653000,-1000.0,0.00035616,10]
[422254008,1778766653000,-1000.0,0.00035616,10]
[422254012,1778766653000,-1000.0,0.00035616,10]
[422254022,1778766653000,-40166.0,0.00035685,30]
[422253989,1778766653000,-4639.0,0.00035593,30]
[422254001,1778766653000,-1000.0,0.00035616,10]
[422253986,1778766653000,-155.0,0.00035593,30]
[422253979,1778766653000,-711.0,0.0003556,30]
[422253998,1778766653000,-670.12,0.00035616,120]
[422253973,1778766653000,-409.22246627,0.00035327,2]
[422253968,1778766653000,-1500.0,0.000352,7]
[422253971,1778766653000,-152.0,0.00035201,16]
[422253969,1778766653000,-399.38,0.000352,2]
[422253970,1778766653000,-7809.10579204,0.000352,4]
[422253972,1778766653000,-40166.0,0.00035301,30]
[422253974,1778766653000,-200.0,0.00035381,2]
[422253976,1778766653000,-40166.0,0.00035429,30]
[422253977,1778766653000,-40166.0,0.00035557,30]
[422253988,1778766653000,-3426.0,0.00035593,30]
[422253975,1778766653000,-20595.58,0.00035382,30]
[422253981,1778766653000,-169.0,0.0003556,30]
[422253978,1778766653000,-40166.0,0.00035557,30]
[422253980,1778766653000,-248.0,0.0003556,30]
[422253982,1778766653000,-158.15,0.00035572,13]
[422253983,1778766653000,-466.0,0.00035574,30]
[422253984,1778766653000,-2367.0,0.00035574,30]
[422253987,1778766653000,-217.0,0.00035593,30]
[422253997,1778766653000,-1000.0,0.00035616,30]
[422253996,1778766653000,-1000.0,0.00035616,120]
[422253985,1778766653000,-206.0,0.00035593,30]
[422254013,1778766653000,-1000.0,0.00035616,10]
[422254016,1778766653000,-151.0,0.00035616,7]
[422254011,1778766653000,-1000.0,0.00035616,10]
[422254040,1778766653000,-1000.0,0.00036048,2]
[422254044,1778766653000,-200.0,0.00036103,5]
[422254042,1778766653000,-1000.0,0.00036048,2]
[422254041,1778766653000,-1000.0,0.00036048,2]
[422254045,1778766653000,-1118.45,0.00036108,10]
[422254043,1778766653000,-40166.0,0.00036068,30]
[422254046,1778766653000,-2661.0,0.00036153,30]
[422254047,1778766653000,-157.0,0.00036154,3]
[422254049,1778766653000,-600.0,0.00036192,14]
[422254019,1778766653000,-151.0,0.00035616,7]
[422254050,1778766653000,-40166.0,0.00036196,30]
[422254054,1778766653000,-290.7809737,0.00036301,2]
[422254056,1778766653000,-386.9364229,0.00036393,7]
[422254059,1778766653000,-124967.30021136,0.000364,30]
[422254052,1778766653000,-200.0,0.00036218,5]
[422254055,1778766653000,-40166.0,0.00036324,30]
[422254053,1778766653000,-200.0,0.00036221,5]
[422254057,1778766653000,-218.59374268,0.00036397,14]
[422254058,1778766653000,-350.0,0.000364,7]
[422254060,1778766653000,-2307.73880796,0.000262,2]
[422254051,1778766653000,-40166.0,0.00036196,30]
[422254037,1778766653000,-1145.83,0.00036,30]
[422254039,1778766653000,-152.0,0.00036008,17]
[422254038,1778766653000,-800.0,0.00036,2]
[422254023,1778766653000,-154.26,0.000357,120]
[422254014,1778766653000,-1000.0,0.00035616,10]
[422254015,1778766653000,-1262.82,0.00035616,2]
[422254017,1778766653000,-151.0,0.00035616,7]
[422254021,1778766653000,-600.0,0.0003563,13]
[422254020,1778766653000,-229.46009506,0.00035616,2]
[422254018,1778766653000,-151.0,0.00035616,7]
[422254024,1778766653000,-5000.0,0.000357,10]
[422254048,1778766653000,-25000.0,0.00036175,10]
[422254025,1778766653000,-40166.0,0.00035812,30]
[422254026,1778766653000,-150.0,0.00035834,2]
[422254029,1778766653000,-40166.0,0.0003594,30]
[422254030,1778766653000,-150.0,0.00035981,2]
[422254028,1778766653000,-200.0,0.000359,13]
[422254031,1778766653000,-200.0,0.00035987,5]
[422254032,1778766653000,-300.0,0.00036,120]
[422254033,1778766653000,-4008.0,0.00036,30]
[422254035,1778766653000,-24683.0,0.00036,7]
[422254034,1778766653000,-25058.71649218,0.00036,2]
[422254036,1778766653000,-5000.0,0.00036,37]
[422254027,1778766653000,-350.0,0.0003589,5]
[422254061,1778766656000,-4.28673263,0.00024,7]
[422254062,1778766656000,-922.18333418,0.00024,7]
[422254064,1778766656000,-1.72655409,0.00022603,2]
[422254063,1778766656000,-150.0,0.00021918,2]
[422254066,1778766656000,-150.0,0.00023288,2]
[422254067,1778766656000,-150.0,0.00023973,2]
[422254068,1778766656000,-3411.15524204,0.00026157,2]
[422254065,1778766656000,-148.27344591,0.00022603,2]
[422254070,1778766667000,-18.1767286,0.00018464,2]
[422254069,1778766667000,-398.8232714,0.00018464,2]
[422254071,1778766667000,-417.0,0.00021464,2]
[422254073,1778766667000,-2012.93,0.00026027,2]
[422254072,1778766667000,-523.24036238,0.00022407,2]
[422254082,1778766667000,-610.5,0.00026113,2]
[422254076,1778766667000,-1705.34592855,0.00026055,7]
[422254075,1778766667000,-1313.09,0.00026027,2]
[422254077,1778766667000,-307.58407145,0.00026055,7]
[422254074,1778766667000,-610.5,0.00026027,2]
[422254080,1778766667000,-610.5,0.00026084,30]
[422254081,1778766667000,-2012.93,0.00026113,2]
[422254078,1778766667000,-610.5,0.00026055,7]
[422254079,1778766667000,-2012.93,0.00026084,2]
[422254084,1778766668000,-1133.48610485,0.00026157,2]
[422254086,1778766668000,-1313.09,0.00026084,2]
[422254085,1778766668000,-1313.09,0.00026055,7]
[422254083,1778766668000,-942.37990569,0.00026157,2]
[422254088,1778766668000,-610.5,0.00026142,7]
[422254089,1778766668000,-5829.79027278,0.00026157,2]
[422254090,1778766668000,-523.24036237,0.00022407,2]
[422254091,1778766668000,-1489.68963763,0.00022407,2]
[422254087,1778766668000,-2012.93,0.00026142,7]
[422254092,1778766754000,-200.0,9.669e-05,2]
[422254093,1778766755000,-14.40717226,9.669e-05,2]
[422254094,1778766755000,-185.59282774,9.669e-05,2]
[422254105,1778767772000,-155.81,9.518e-05,2]
[422254107,1778767772000,-307.85711013,9.556e-05,2]
[422254106,1778767772000,-250.0,9.537e-05,2]
[422254109,1778767772000,-150.0,9.634e-05,2]
[422254110,1778767772000,-172.22386803,0.0001,2]
[422254108,1778767772000,-250.0,9.585e-05,2]
[422254112,1778767772000,-150.0,0.0001028,2]
[422254111,1778767772000,-1510.48428863,0.0001,2]
[422254114,1778767772000,-599.41046989,0.0001047,2]
[422254113,1778767772000,-364.81562405,0.0001047,2]
[422254115,1778767772000,-250.0,0.0001047,2]
[422254117,1778767772000,-300.0,0.00010689,2]
[422254118,1778767772000,-317.87941959,0.0001069,2]
[422254116,1778767772000,-244.28862959,0.000105,2]
[422254119,1778767827000,1101.59038104,0.00010699,3]
[422254130,1778767832000,-250.0,0.0001036,2]
[422254125,1778767832000,-420.08204455,9.418e-05,2]
[422254126,1778767832000,-79.91795545,9.418e-05,2]
[422254128,1778767832000,-170.64192152,0.0001018,2]
[422254127,1778767832000,-250.0,9.799e-05,2]
[422254129,1778767832000,-250.0,0.00010256,2]
[422254132,1778767832000,-508.79820151,0.0001059,2]
[422254134,1778767832000,-170.64192152,0.000106,2]
[422254131,1778767832000,-170.64192152,0.0001039,2]
[422254133,1778767832000,-95.79347996,0.0001059,2]
[422254135,1778767832000,-605093.0250875,0.000106,2]
[422254136,1778767832000,-62912.02642401,0.000106,2]
[422254139,1778767832000,-14451.99995047,0.000106,2]
[422254137,1778767832000,-79086.1019122,0.000106,2]
[422254138,1778767832000,-112266.5331089,0.000106,2]
[422254201,1778767838000,-500.0,0.00011098,2]
[422254202,1778767838000,-500.0,0.00011098,2]
[422254197,1778767838000,-500.0,0.00011098,2]
[422254203,1778767838000,-500.0,0.00011098,2]
[422254199,1778767838000,-500.0,0.00011098,2]
[422254200,1778767838000,-500.0,0.00011098,2]
[422254204,1778767838000,-500.0,0.00011098,2]
[422254196,1778767838000,-500.0,0.00011098,2]
[422254206,1778767838000,-500.0,0.00011098,2]
[422254195,1778767838000,-500.0,0.00011098,2]
[422254205,1778767838000,-500.0,0.00011098,2]
[422254208,1778767838000,-500.0,0.00011098,2]
[422254207,1778767838000,-500.0,0.00011098,2]
[422254210,1778767838000,-500.0,0.00011098,2]
[422254198,1778767838000,-500.0,0.00011098,2]
[422254193,1778767838000,-500.0,0.00011098,2]
[422254187,1778767838000,-185.62,0.000107,2]
[422254190,1778767838000,-500.0,0.00011098,2]
[422254176,1778767838000,-986.17106973,0.000106,2]
[422254177,1778767838000,-4350.91949934,0.000106,2]
[422254178,1778767838000,-1467.32326454,0.000106,2]
[422254180,1778767838000,-413747.57312374,0.000106,2]
[422254179,1778767838000,-2128.04758056,0.000106,2]
[422254192,1778767838000,-500.0,0.00011098,2]
[422254181,1778767838000,-393328.03247901,0.000106,2]
[422254183,1778767838000,-150.0,0.00010699,2]
[422254185,1778767838000,-1200.0,0.00010699,2]
[422254182,1778767838000,-1218.45058041,0.0001069,2]
[422254191,1778767838000,-500.0,0.00011098,2]
[422254189,1778767838000,-169.18,0.00010965,2]
[422254186,1778767838000,-401883.26147487,0.000107,2]
[422254209,1778767838000,-640.42478987,0.00011098,2]
[422254188,1778767838000,-999.99,0.000107,2]
[422254194,1778767838000,-500.0,0.00011098,2]
[422254215,1778767838000,-500.0,0.00011098,2]
[422254184,1778767838000,-300.0,0.00010699,2]
[422254214,1778767838000,-500.0,0.00011098,2]
[422254234,1778767838000,-500.0,0.00011098,2]
[422254235,1778767838000,-500.0,0.00011098,2]
[422254236,1778767838000,-500.0,0.00011098,2]
[422254238,1778767838000,-500.0,0.00011098,2]
[422254237,1778767838000,-500.0,0.00011098,2]
[422254241,1778767838000,-500.0,0.00011098,2]
[422254243,1778767838000,-500.0,0.00011098,2]
[422254239,1778767838000,-500.0,0.00011098,2]
[422254242,1778767838000,-500.0,0.00011098,2]
[422254244,1778767838000,-500.0,0.00011098,2]
[422254247,1778767838000,-500.0,0.00011098,2]
[422254246,1778767838000,-500.0,0.00011098,2]
[422254245,1778767838000,-265.18955009,0.00011098,2]
[422254248,1778767838000,-500.0,0.00011098,2]
[422254213,1778767838000,-500.0,0.00011098,2]
[422254233,1778767838000,-500.0,0.00011098,2]
[422254232,1778767838000,-500.0,0.00011098,2]
[422254240,1778767838000,-500.0,0.00011098,2]
[422254230,1778767838000,-500.0,0.00011098,2]
[422254212,1778767838000,-500.0,0.00011098,2]
[422254229,1778767838000,-500.0,0.00011098,2]
[422254218,1778767838000,-500.0,0.00011098,2]
[422254217,1778767838000,-500.0,0.00011098,2]
[422254211,1778767838000,-500.0,0.00011098,2]
[422254219,1778767838000,-500.0,0.00011098,2]
[422254221,1778767838000,-500.0,0.00011098,2]
[422254222,1778767838000,-500.0,0.00011098,2]
[422254216,1778767838000,-500.0,0.00011098,2]
[422254223,1778767838000,-500.0,0.00011098,2]
[422254231,1778767838000,-500.0,0.00011098,2]
[422254220,1778767838000,-500.0,0.00011098,2]
[422254228,1778767838000,-500.0,0.00011098,2]
[422254227,1778767838000,-500.0,0.00011098,2]
[422254226,1778767838000,-500.0,0.00011098,2]
[422254224,1778767838000,-500.0,0.00011098,2]
[422254225,1778767838000,-500.0,0.00011098,2]
[422254287,1778767839000,-172.22386803,0.00011805,2]
[422254283,1778767839000,-255.0,0.00011737,2]
[422254285,1778767839000,-1680.0,0.00011769,2]
[422254286,1778767839000,-155.81,0.00011805,2]
[422254281,1778767839000,-16855.95571812,0.00011556,2]
[422254273,1778767839000,-150.99,0.00011099,2]
[422254277,1778767839000,-7141.7,0.00011301,2]
[422254279,1778767839000,-154.55,0.00011398,2]
[422254289,1778767839000,-16855.95571812,0.00012033,2]
[422254274,1778767839000,-154.7273924,0.00011201,2]
[422254284,1778767839000,-420.0,0.00011761,2]
[422254290,1778767839000,-34630.26809111,0.00012315,2]
[422254296,1778767839000,-433.0,0.00012871,2]
[422254288,1778767839000,-500.0,0.0001192,2]
[422254293,1778767839000,-778.59,0.00012348,2]
[422254294,1778767839000,-16855.95571812,0.00012511,2]
[422254292,1778767839000,-169.18,0.00012335,2]
[422254298,1778767839000,-2351.0,0.00012946,2]
[422254297,1778767839000,-587.0,0.00012928,2]
[422254295,1778767839000,-250.0,0.00012577,2]
[422254299,1778767839000,-16855.95571812,0.00012989,2]
[422254300,1778767839000,-3265.38520171,0.00013,5]
[422254280,1778767839000,-150.0,0.00011547,2]
[422254301,1778767839000,-5410.10337762,0.0001305,2]
[422254291,1778767839000,-570.45,0.00012329,2]
[422254275,1778767839000,-3600.0,0.00011201,2]
[422254257,1778767839000,-500.0,0.00011098,2]
[422254276,1778767839000,-171.62,0.00011233,2]
[422254302,1778767839000,-154.55,0.00013297,2]
[422254254,1778767839000,-481.07919484,0.00011098,2]
[422254255,1778767839000,-500.0,0.00011098,2]
[422254256,1778767839000,-500.0,0.00011098,2]
[422254250,1778767839000,-500.0,0.00011098,2]
[422254249,1778767839000,-500.0,0.00011098,2]
[422254251,1778767839000,-500.0,0.00011098,2]
[422254252,1778767839000,-500.0,0.00011098,2]
[422254253,1778767839000,-500.0,0.00011098,2]
[422254259,1778767839000,-534.53243871,0.00011098,2]
[422254265,1778767839000,-534.53243871,0.00011098,2]
[422254278,1778767839000,-500.0,0.00011372,2]
[422254266,1778767839000,-9999.99,0.00011098,2]
[422254258,1778767839000,-500.0,0.00011098,2]
[422254267,1778767839000,-9999.99,0.00011098,2]
[422254268,1778767839000,-10782.81,0.00011098,2]
[422254262,1778767839000,-534.53243871,0.00011098,2]
[422254261,1778767839000,-534.53243871,0.00011098,2]
[422254263,1778767839000,-9999.99,0.00011098,2]
[422254264,1778767839000,-299.99,0.00011098,2]
[422254270,1778767839000,-16855.95571818,0.00011099,2]
[422254282,1778767839000,-500.0,0.00011646,2]
[422254271,1778767839000,-16855.95571812,0.00011099,2]
[422254272,1778767839000,-9999.99,0.00011099,2]
[422254269,1778767839000,-534.53243871,0.00011098,2]
[422254304,1778767839000,-1659.0,0.000134,2]
[422254260,1778767839000,-534.53243871,0.00011098,2]
[422254305,1778767839000,-2311.0,0.000134,2]
[422254336,1778767839000,-150.0,0.00013675,2]
[422254339,1778767839000,-150.0,0.00013692,2]
[422254335,1778767839000,-150.0,0.00013658,2]
[422254337,1778767839000,-150.0,0.00013675,2]
[422254344,1778767839000,-500.0,0.00013698,2]
[422254338,1778767839000,-150.0,0.00013675,2]
[422254345,1778767839000,-500.0,0.00013698,2]
[422254340,1778767839000,-42364.93172562,0.00013696,2]
[422254341,1778767839000,-359.42643492,0.00013698,2]
[422254359,1778767839000,-150.0,0.00013777,2]
[422254343,1778767839000,-500.0,0.00013698,2]
[422254346,1778767839000,-200.0,0.00013699,2]
[422254347,1778767839000,-519.62,0.00013699,2]
[422254348,1778767839000,-163.16,0.000137,2]
[422254349,1778767839000,-150.0,0.00013702,2]
[422254350,1778767839000,-169.18,0.00013706,2]
[422254352,1778767839000,-150.0,0.00013726,2]
[422254353,1778767839000,-150.0,0.00013737,2]
[422254356,1778767839000,-150.0,0.0001376,2]
[422254354,1778767839000,-150.0,0.00013743,2]
[422254355,1778767839000,-150.0,0.0001376,2]
[422254351,1778767839000,-150.0,0.00013709,2]
[422254358,1778767839000,-150.0,0.00013773,2]
[422254357,1778767839000,-150.0,0.00013769,2]
[422254306,1778767839000,-16855.95571812,0.00013467,2]
[422254333,1778767839000,-150.0,0.00013638,2]
[422254329,1778767839000,-150.0,0.00013613,2]
[422254342,1778767839000,-500.0,0.00013698,2]
[422254328,1778767839000,-150.0,0.00013607,2]
[422254314,1778767839000,-150.0,0.00013488,2]
[422254325,1778767839000,-150.0,0.00013581,2]
[422254307,1778767839000,-150.3516787,0.00013488,2]
[422254313,1778767839000,-150.0,0.00013488,2]
[422254308,1778767839000,-150.0,0.00013488,2]
[422254303,1778767839000,-9231.81,0.00013309,2]
[422254309,1778767839000,-150.0,0.00013488,2]
[422254315,1778767839000,-150.0,0.00013488,2]
[422254310,1778767839000,-150.0,0.00013488,2]
[422254312,1778767839000,-150.0,0.00013488,2]
[422254316,1778767839000,-150.0,0.00013488,2]
[422254319,1778767839000,-150.0,0.00013505,2]
[422254320,1778767839000,-150.0,0.00013522,2]
[422254311,1778767839000,-150.0,0.00013488,2]
[422254322,1778767839000,-150.0,0.00013556,2]
[422254332,1778767839000,-150.0,0.0001363,2]
[422254317,1778767839000,-150.0,0.00013488,2]
[422254330,1778767839000,-150.0,0.00013624,2]
[422254331,1778767839000,-150.0,0.00013624,2]
[422254323,1778767839000,-150.0,0.00013559,2]
[422254334,1778767839000,-150.0,0.00013641,2]
[422254327,1778767839000,-6798.0986,0.00013597,2]
[422254324,1778767839000,-150.0,0.00013573,2]
[422254321,1778767839000,-150.0,0.00013539,2]
[422254318,1778767839000,-1000.0,0.000135,2]
[422254326,1778767839000,-150.0,0.0001359,2]
[422254401,1778767840000,-155.81,0.00014091,2]
[422254392,1778767840000,-150.0,0.0001405,2]
[422254384,1778767840000,-150.0,0.00013987,2]
[422254395,1778767840000,-150.0,0.00014059,2]
[422254403,1778767840000,-2508.13,0.000141,2]
[422254397,1778767840000,-150.0,0.00014067,2]
[422254394,1778767840000,-150.0,0.0001405,2]
[422254393,1778767840000,-150.0,0.0001405,2]
[422254402,1778767840000,-4715.29,0.000141,2]
[422254400,1778767840000,-150.0,0.00014087,2]
[422254405,1778767840000,-150.0,0.00014101,2]
[422254399,1778767840000,-150.0,0.00014084,2]
[422254421,1778767840000,-150.0,0.00014237,2]
[422254406,1778767840000,-150.0,0.00014112,2]
[422254408,1778767840000,-736.0,0.00014123,2]
[422254409,1778767840000,-150.0,0.0001413,2]
[422254410,1778767840000,-150.0,0.00014135,2]
[422254415,1778767840000,-150.0,0.00014186,2]
[422254412,1778767840000,-150.0,0.00014152,2]
[422254411,1778767840000,-150.0,0.00014143,2]
[422254413,1778767840000,-150.0,0.00014169,2]
[422254414,1778767840000,-150.0,0.00014169,2]
[422254416,1778767840000,-150.0,0.00014201,2]
[422254386,1778767840000,-4080.67207393,0.0001399,2]
[422254407,1778767840000,-150.0,0.00014118,2]
[422254383,1778767840000,-150.0,0.00013982,2]
[422254368,1778767840000,-150.0,0.00013862,2]
[422254389,1778767840000,-150.0,0.00014016,2]
[422254420,1778767840000,-150.0,0.00014237,2]
[422254361,1778767840000,-150.0,0.00013787,2]
[422254365,1778767840000,-150.0,0.00013844,2]
[422254362,1778767840000,-150.0,0.00013794,2]
[422254363,1778767840000,-150.0,0.00013811,2]
[422254364,1778767840000,-150.0,0.00013828,2]
[422254367,1778767840000,-150.0,0.00013862,2]
[422254366,1778767840000,-150.0,0.00013845,2]
[422254369,1778767840000,-150.0,0.00013862,2]
[422254370,1778767840000,-150.0,0.00013862,2]
[422254373,1778767840000,-150.0,0.00013896,2]
[422254375,1778767840000,-150.0,0.00013916,2]
[422254371,1778767840000,-150.0,0.00013879,2]
[422254374,1778767840000,-150.0,0.00013913,2]
[422254372,1778767840000,-150.0,0.00013896,2]
[422254379,1778767840000,-16855.95571812,0.00013944,2]
[422254376,1778767840000,-150.0,0.0001393,2]
[422254377,1778767840000,-150.0,0.00013937,2]
[422254387,1778767840000,-150.0,0.00013999,2]
[422254388,1778767840000,-250.0,0.00014,2]
[422254380,1778767840000,-150.0,0.00013947,2]
[422254382,1778767840000,-150.0,0.00013965,2]
[422254391,1778767840000,-150.0,0.00014033,2]
[422254381,1778767840000,-150.0,0.00013956,2]
[422254390,1778767840000,-150.0,0.00014033,2]
[422254385,1778767840000,-150.0,0.00013987,2]
[422254423,1778767840000,-150.0,0.00014237,2]
[422254417,1778767840000,-150.0,0.00014203,2]
[422254422,1778767840000,-150.0,0.00014237,2]
[422254455,1778767840000,-152.97,0.00014389,2]
[422254457,1778767840000,-201.48,0.0001439,2]
[422254461,1778767840000,-343.2,0.00014414,2]
[422254460,1778767840000,-150.0,0.00014407,2]
[422254453,1778767840000,-201.48,0.00014387,2]
[422254456,1778767840000,-10114.76832961,0.0001439,2]
[422254458,1778767840000,-150.0,0.0001439,2]
[422254452,1778767840000,-216.98,0.00014387,2]
[422254459,1778767840000,-362.67,0.00014392,2]
[422254462,1778767840000,-150.0,0.00014415,2]
[422254454,1778767840000,-216.98,0.00014388,2]
[422254450,1778767840000,-152.97,0.00014384,2]
[422254464,1778767840000,-150.0,0.00014424,2]
[422254465,1778767840000,-150.0,0.00014424,2]
[422254466,1778767840000,-150.0,0.00014424,2]
[422254467,1778767840000,-2000.0,0.00014433,2]
[422254468,1778767840000,-150.0,0.00014441,2]
[422254469,1778767840000,-150.0,0.00014441,2]
[422254473,1778767840000,-5024.36972956,0.00014486,2]
[422254471,1778767840000,-189.55,0.00014472,2]
[422254418,1778767840000,-823.0,0.0001421,2]
[422254470,1778767840000,-150.0,0.00014458,2]
[422254475,1778767840000,-150.0,0.00014487,2]
[422254474,1778767840000,-150.0,0.00014487,2]
[422254463,1778767840000,-16855.95571812,0.00014422,2]
[422254445,1778767840000,-362.67,0.00014382,2]
[422254472,1778767840000,-150.0,0.00014475,2]
[422254442,1778767840000,-150.0,0.00014373,2]
[422254449,1778767840000,-183.56,0.00014384,2]
[422254424,1778767840000,-150.0,0.00014237,2]
[422254426,1778767840000,-150.0,0.00014237,2]
[422254425,1778767840000,-150.0,0.00014237,2]
[422254427,1778767840000,-3292.0,0.0001424,2]
[422254428,1778767840000,-150.0,0.00014247,21]
[422254429,1778767840000,-150.0,0.00014254,2]
[422254439,1778767840000,-150.0,0.00014344,2]
[422254437,1778767840000,-150.0,0.00014331,2]
[422254430,1778767840000,-150.0,0.00014271,2]
[422254432,1778767840000,-150.0,0.00014286,2]
[422254436,1778767840000,-150.0,0.00014322,2]
[422254419,1778767840000,-150.0,0.0001422,2]
[422254431,1778767840000,-150.0,0.00014273,2]
[422254435,1778767840000,-150.0,0.00014305,2]
[422254446,1778767840000,-362.67,0.00014382,2]
[422254448,1778767840000,-183.56,0.00014384,2]
[422254443,1778767840000,-216.98,0.00014382,2]
[422254440,1778767840000,-150.0,0.00014356,2]
[422254444,1778767840000,-289.30864861,0.00014382,2]
[422254441,1778767840000,-150.0,0.00014362,2]
[422254438,1778767840000,-150.0,0.00014339,2]
[422254434,1778767840000,-150.0,0.00014305,2]
[422254433,1778767840000,-150.0,0.00014288,2]
[422254451,1778767840000,-150.0,0.00014387,2]
[422254447,1778767840000,-201.48,0.00014382,2]
[422254501,1778767841000,-150.0,0.00014714,2]
[422254507,1778767841000,-150.0,0.00014772,2]
[422254502,1778767841000,-150.0,0.00014714,2]
[422254504,1778767841000,-150.0,0.00014737,2]
[422254506,1778767841000,-150.0,0.00014765,2]
[422254508,1778767841000,-150.0,0.00014782,2]
[422254509,1778767841000,-150.0,0.00014799,2]
[422254505,1778767841000,-150.0,0.00014748,2]
[422254503,1778767841000,-150.0,0.00014731,2]
[422254510,1778767841000,-150.0,0.00014799,2]
[422254514,1778767841000,-150.0,0.00014836,2]
[422254513,1778767841000,-150.0,0.00014833,2]
[422254511,1778767841000,-150.0,0.00014799,2]
[422254517,1778767841000,-150.0,0.0001485,2]
[422254515,1778767841000,-150.0,0.00014844,2]
[422254516,1778767841000,-150.0,0.0001485,2]
[422254521,1778767841000,-1106.10975102,0.00014885,2]
[422254524,1778767841000,-5000.0,0.000149,2]
[422254518,1778767841000,-150.0,0.00014861,2]
[422254500,1778767841000,-150.0,0.00014705,2]
[422254512,1778767841000,-150.0,0.00014816,2]
[422254499,1778767841000,-150.0,0.00014701,2]
[422254486,1778767841000,-150.0,0.00014578,2]
[422254498,1778767841000,-150.0,0.00014697,2]
[422254476,1778767841000,-150.0,0.00014492,2]
[422254477,1778767841000,-150.0,0.00014509,2]
[422254479,1778767841000,-150.0,0.00014518,2]
[422254478,1778767841000,-473.77523904,0.0001451,2]
[422254484,1778767841000,-150.0,0.00014561,2]
[422254481,1778767841000,-150.0,0.00014537,2]
[422254482,1778767841000,-150.0,0.00014544,2]
[422254480,1778767841000,-150.0,0.00014526,2]
[422254483,1778767841000,-150.0,0.00014558,2]
[422254519,1778767841000,-150.0,0.00014867,2]